DEPARTMENT FAMILY,ENTITY,DATE,EXPENSE TYPE,EXPENSE AREA,SUPPLIER,TRANSACTION NUMBER,AMOUNT,DESCRIPTION
DEPARTMENT OF HEALTH,BLACKPOOL TEACHING HOSPITALS NHS FT,04-Aug-14,PACEMAKERS,CARDIOLOGY,BOSTON SCIENTIFIC LTD,5148239,"30,168.00",APPLIANCES AND IMPLANTS
DEPARTMENT OF HEALTH,BLACKPOOL TEACHING HOSPITALS NHS FT,07-Aug-14,PACEMAKERS,CARDIOLOGY,MEDTRONIC LTD,5149752,"51,066.19",APPLIANCES AND IMPLANTS
DEPARTMENT OF HEALTH,BLACKPOOL TEACHING HOSPITALS NHS FT,07-Aug-14,PACEMAKERS,CARDIOLOGY,BOSTON SCIENTIFIC LTD,5149759,"54,114.00",APPLIANCES AND IMPLANTS
DEPARTMENT OF HEALTH,BLACKPOOL TEACHING HOSPITALS NHS FT,11-Aug-14,PACEMAKERS,CARDIOLOGY,BOSTON SCIENTIFIC LTD,5150703,"40,194.00",APPLIANCES AND IMPLANTS
DEPARTMENT OF HEALTH,BLACKPOOL TEACHING HOSPITALS NHS FT,21-Aug-14,PACEMAKERS,CARDIOLOGY,BOSTON SCIENTIFIC LTD,5153895,"51,999.60",APPLIANCES AND IMPLANTS
DEPARTMENT OF HEALTH,BLACKPOOL TEACHING HOSPITALS NHS FT,21-Aug-14,PACEMAKERS,CARDIOLOGY,BOSTON SCIENTIFIC LTD,5153896,"93,696.00",APPLIANCES AND IMPLANTS
DEPARTMENT OF HEALTH,BLACKPOOL TEACHING HOSPITALS NHS FT,27-Aug-14,PACEMAKERS,CARDIOLOGY,MEDTRONIC LTD,5154889,"49,952.16",APPLIANCES AND IMPLANTS
DEPARTMENT OF HEALTH,BLACKPOOL TEACHING HOSPITALS NHS FT,27-Aug-14,PACEMAKERS,CARDIOLOGY,BOSTON SCIENTIFIC LTD,5154897,"33,294.00",APPLIANCES AND IMPLANTS
DEPARTMENT OF HEALTH,BLACKPOOL TEACHING HOSPITALS NHS FT,28-Aug-14,PACEMAKERS,CARDIOLOGY,MEDTRONIC LTD,5155174,"40,377.96",APPLIANCES AND IMPLANTS
DEPARTMENT OF HEALTH,BLACKPOOL TEACHING HOSPITALS NHS FT,28-Aug-14,PACEMAKERS,CARDIOLOGY,MEDTRONIC LTD,5155175,"27,000.00",APPLIANCES AND IMPLANTS
DEPARTMENT OF HEALTH,BLACKPOOL TEACHING HOSPITALS NHS FT,12-Aug-14,HEART VALVES,CARDIOLOGY,MEDTRONIC LTD,5151183,"25,920.00",APPLIANCES AND IMPLANTS
DEPARTMENT OF HEALTH,BLACKPOOL TEACHING HOSPITALS NHS FT,05-Aug-14,LABORATORY REAGENTS,PATHOLOGY,BECKMAN COULTER UK,5149162,"30,671.56",LABORATORY EQUIPMENT - PURCHASES
DEPARTMENT OF HEALTH,BLACKPOOL TEACHING HOSPITALS NHS FT,12-Aug-14,SERVICES FROM LOCAL AUTHORITIES,FYLDE & WYRE LOCALITY COMM NURSING & REHAB THERAPIES DIRECTORATE,BLACKPOOL BOROUGH COUNCIL,5151286,"67,340.91",SERVICES FROM LOCAL AUTHORITIES
DEPARTMENT OF HEALTH,BLACKPOOL TEACHING HOSPITALS NHS FT,06-Aug-14,MISCELLANEOUS EXPENDITURE,CHIEF EXECUTIVE,CARE QUALITY COMMISSION,5149527,"102,500.00",SUBSCRIPTIONS
DEPARTMENT OF HEALTH,BLACKPOOL TEACHING HOSPITALS NHS FT,14-Aug-14,COMPUTER HARDWARE PURCHASES,ICT,DELL CORPORATION LTD,5151986,"45,034.80","FURNITURE, OFFICE AND COMPUTER EQUIPMENT"
DEPARTMENT OF HEALTH,BLACKPOOL TEACHING HOSPITALS NHS FT,08-Aug-14,MEDICAL AND SURGICAL EQUIPMENT PURCHASES,FYLDE & WYRE LOCALITY COMM NURSING & REHAB THERAPIES DIRECTORATE,HILL-ROM LTD,5150260,"25,539.30",MEDICAL AND SURGICAL EQUIPMENT PURCHASES
DEPARTMENT OF HEALTH,BLACKPOOL TEACHING HOSPITALS NHS FT,21-Aug-14,COMPUTER MAINTENANCE,ICT,INTEGRATED MEDICAL SOLUTIONS LTD,5154027,"41,958.00","FURNITURE, OFFICE AND COMPUTER EQUIPMENT"
DEPARTMENT OF HEALTH,BLACKPOOL TEACHING HOSPITALS NHS FT,29-Aug-14,COMPUTER NETWORK COSTS,DIVISIONAL MANAGEMENT,LANCASHIRE CARE NHS FOUNDATION TRUST,5155923,"34,253.00","FURNITURE, OFFICE AND COMPUTER EQUIPMENT"
DEPARTMENT OF HEALTH,BLACKPOOL TEACHING HOSPITALS NHS FT,20-Aug-14,NON HEALTHCARE SERVICES FROM OTHER NHS BODIES,SPECIALIST MEDICINE,LANCASHIRE TEACHING HOSPITALS NHS FOUNDATION TRUST,5153379,"30,703.00",SERVICES RECEIVED FROM N.H.S. BODIES
DEPARTMENT OF HEALTH,BLACKPOOL TEACHING HOSPITALS NHS FT,05-Aug-14,CONFERENCES AND SEMINARS,HR & OD,LANCASTER UNIVERSITY,5149057,"39,204.00",TRAINING
DEPARTMENT OF HEALTH,BLACKPOOL TEACHING HOSPITALS NHS FT,15-Aug-14,NON HEALTHCARE SERVICES FROM OTHER NHS BODIES,EMERGENCY & ACUTE MEDICINE,NHS BLACKPOOL CCG,5152687,"67,887.36",SERVICES RECEIVED FROM N.H.S. BODIES
DEPARTMENT OF HEALTH,BLACKPOOL TEACHING HOSPITALS NHS FT,18-Aug-14,BLOOD PRODUCTS,PATHOLOGY,NHS BLOOD AND TRANSPLANT,5152658,"200,417.25",BLOOD PRODUCTS
DEPARTMENT OF HEALTH,BLACKPOOL TEACHING HOSPITALS NHS FT,26-Aug-14,BLOOD PRODUCTS,PATHOLOGY,NHS BLOOD AND TRANSPLANT,5154579,"200,417.25",BLOOD PRODUCTS
DEPARTMENT OF HEALTH,BLACKPOOL TEACHING HOSPITALS NHS FT,26-Aug-14,NON HEALTHCARE SERVICES FROM OTHER NHS BODIES,RADIOLOGY,NHS PROPERTY SERVICES LTD,5154615,"37,890.98",PROPERTY RENTAL
DEPARTMENT OF HEALTH,BLACKPOOL TEACHING HOSPITALS NHS FT,26-Aug-14,NON HEALTHCARE SERVICES FROM OTHER NHS BODIES,DIVISIONAL MANAGEMENT,NHS PROPERTY SERVICES LTD,5154616,"54,365.23",PROPERTY RENTAL
DEPARTMENT OF HEALTH,BLACKPOOL TEACHING HOSPITALS NHS FT,26-Aug-14,NON HEALTHCARE SERVICES FROM OTHER NHS BODIES,DIVISIONAL MANAGEMENT,NHS PROPERTY SERVICES LTD,5154617,"86,658.79",PROPERTY RENTAL
DEPARTMENT OF HEALTH,BLACKPOOL TEACHING HOSPITALS NHS FT,26-Aug-14,NON HEALTHCARE SERVICES FROM OTHER NHS BODIES,DIVISIONAL MANAGEMENT,NHS PROPERTY SERVICES LTD,5154613,"21,667.23",PROPERTY RENTAL
DEPARTMENT OF HEALTH,BLACKPOOL TEACHING HOSPITALS NHS FT,20-Aug-14,X-RAY EQUIPMENT : MAINTENANCE,EBME,NHS SUPPLY CHAIN,5153368,"223,727.75",X-RAY EQUIPMENT - MAINTENANCE
DEPARTMENT OF HEALTH,BLACKPOOL TEACHING HOSPITALS NHS FT,28-Aug-14,LABORATORY REAGENTS,PATHOLOGY,ROCHE DIAGNOSTICS LTD,5155208,"46,042.88",LABORATORY EQUIPMENT - PURCHASES
DEPARTMENT OF HEALTH,BLACKPOOL TEACHING HOSPITALS NHS FT,28-Aug-14,MISCELLANEOUS EXPENDITURE,CHIEF EXECUTIVE,SALFORD ROYAL NHS FOUNDATION TRUST,5155261,"40,000.00",SUBSCRIPTIONS
DEPARTMENT OF HEALTH,BLACKPOOL TEACHING HOSPITALS NHS FT,05-Aug-14,COMPUTER SOFTWARE / LICENSE  FEES,PLANNING & CONTRACTING,SAVIENCE LTD (2002),5148914,"27,631.27","FURNITURE, OFFICE AND COMPUTER EQUIPMENT"
DEPARTMENT OF HEALTH,BLACKPOOL TEACHING HOSPITALS NHS FT,06-Aug-14,EXTERNAL CONSULTANCY FEES,FINANCE,HUNTER HEALTHCARE RESOURCING LTD,5149251,"32,760.00",EXTERNAL CONTRACT STAFFING AND CONSULTANCY
DEPARTMENT OF HEALTH,BLACKPOOL TEACHING HOSPITALS NHS FT,06-Aug-14,EXTERNAL CONSULTANCY FEES,FINANCE,HUNTER HEALTHCARE RESOURCING LTD,5149252,"32,760.00",EXTERNAL CONTRACT STAFFING AND CONSULTANCY
DEPARTMENT OF HEALTH,BLACKPOOL TEACHING HOSPITALS NHS FT,11-Aug-14,CONTRACT : PHOTOCOPYING RENTAL AND CHARGES,ICT,CANON (UK) LTD,5150799,"57,699.63",EXTERNAL GENERAL SERVICE CONTRACTS
DEPARTMENT OF HEALTH,BLACKPOOL TEACHING HOSPITALS NHS FT,04-Aug-14,HEALTHCARE FROM INDEPENDENT SECTOR,SPECIALIST SURGERY,SPIRAL HEALTH CIC,5148489,"256,555.00",PURCHASE OF HEALTH CARE SERVICES
DEPARTMENT OF HEALTH,BLACKPOOL TEACHING HOSPITALS NHS FT,04-Aug-14,HEALTHCARE FROM INDEPENDENT SECTOR,SPECIALIST SURGERY,SPIRAL HEALTH CIC,5148490,"125,916.67",PURCHASE OF HEALTH CARE SERVICES
DEPARTMENT OF HEALTH,BLACKPOOL TEACHING HOSPITALS NHS FT,20-Aug-14,EXTERNAL CONTRACTS : DOMESTICS,SOFT FM,ISS FACILITY SERVICES HEALTHCARE,5153206,"302,282.51",CLEANING SERVICES
DEPARTMENT OF HEALTH,BLACKPOOL TEACHING HOSPITALS NHS FT,11-Aug-14,EXTERNAL CONTRACTS : LAUNDRY,SOFT FM,EXPRESS LAUNDERERS,5150497,"62,000.00",LAUNDRY SERVICES
DEPARTMENT OF HEALTH,BLACKPOOL TEACHING HOSPITALS NHS FT,04-Aug-14,UTILITIES,HARD FM,UNITED UTILITIES,5148391,"44,162.70",WATER
DEPARTMENT OF HEALTH,BLACKPOOL TEACHING HOSPITALS NHS FT,06-Aug-14,UTILITIES,HARD FM,NPOWER LTD,5149842,"126,331.43",ELECTRICITY
DEPARTMENT OF HEALTH,BLACKPOOL TEACHING HOSPITALS NHS FT,08-Aug-14,UTILITIES,HARD FM,GAZPROM MARKETING AND TRADING RETAIL LTD,5149942,"64,452.55",GAS
DEPARTMENT OF HEALTH,BLACKPOOL TEACHING HOSPITALS NHS FT,21-Aug-14,CAPITAL PURCHASES,CAPITAL PURCHASES,CHRIS BOWKER LTD,5153609,"189,698.45",CAPITAL PURCHASES
DEPARTMENT OF HEALTH,BLACKPOOL TEACHING HOSPITALS NHS FT,26-Aug-14,CAPITAL PURCHASES,CAPITAL PURCHASES,CLINISYS SOLUTIONS LTD,5154284,"58,826.00",CAPITAL PURCHASES
DEPARTMENT OF HEALTH,BLACKPOOL TEACHING HOSPITALS NHS FT,26-Aug-14,CAPITAL PURCHASES,CAPITAL PURCHASES,DELL CORPORATION LTD,5154286,"33,838.56",CAPITAL PURCHASES
DEPARTMENT OF HEALTH,BLACKPOOL TEACHING HOSPITALS NHS FT,28-Aug-14,CAPITAL PURCHASES,CAPITAL PURCHASES,GE HEALTHCARE CLINICAL SYSTEMS (UK) LTD_002,5155102,"570,000.00",CAPITAL PURCHASES
DEPARTMENT OF HEALTH,BLACKPOOL TEACHING HOSPITALS NHS FT,08-Aug-14,CAPITAL PURCHASES,CAPITAL PURCHASES,DE SOUTTER MEDICAL LTD,5150340,"38,608.94",CAPITAL PURCHASES
DEPARTMENT OF HEALTH,BLACKPOOL TEACHING HOSPITALS NHS FT,04-Aug-14,PHARMACY DRUGS INVENTORY,PHARMACY DRUGS INVENTORY,LLOYDS PHARMACY LTD,5148385,"305,609.17",PHARMACY STORES
DEPARTMENT OF HEALTH,BLACKPOOL TEACHING HOSPITALS NHS FT,05-Aug-14,PHARMACY DRUGS INVENTORY,PHARMACY DRUGS INVENTORY,ROCHE PRODUCTS LTD,5148575,"32,566.12",PHARMACY STORES
DEPARTMENT OF HEALTH,BLACKPOOL TEACHING HOSPITALS NHS FT,05-Aug-14,PHARMACY DRUGS INVENTORY,PHARMACY DRUGS INVENTORY,LLOYDS PHARMACY LTD,5149181,"42,220.00",PHARMACY STORES
DEPARTMENT OF HEALTH,BLACKPOOL TEACHING HOSPITALS NHS FT,06-Aug-14,PHARMACY DRUGS INVENTORY,PHARMACY DRUGS INVENTORY,ROCHE PRODUCTS LTD,5149406,"42,462.46",PHARMACY STORES
DEPARTMENT OF HEALTH,BLACKPOOL TEACHING HOSPITALS NHS FT,13-Aug-14,PHARMACY DRUGS INVENTORY,PHARMACY DRUGS INVENTORY,ROCHE PRODUCTS LTD,5151476,"44,027.20",PHARMACY STORES
DEPARTMENT OF HEALTH,BLACKPOOL TEACHING HOSPITALS NHS FT,21-Aug-14,PHARMACY DRUGS INVENTORY,PHARMACY DRUGS INVENTORY,ROCHE PRODUCTS LTD,5153573,"39,140.58",PHARMACY STORES
DEPARTMENT OF HEALTH,BLACKPOOL TEACHING HOSPITALS NHS FT,28-Aug-14,PHARMACY DRUGS INVENTORY,PHARMACY DRUGS INVENTORY,NOVARTIS PHARMACEUTICALS UK LTD,5155328,"53,436.00",PHARMACY STORES
DEPARTMENT OF HEALTH,BLACKPOOL TEACHING HOSPITALS NHS FT,28-Aug-14,PHARMACY DRUGS INVENTORY,PHARMACY DRUGS INVENTORY,ROCHE PRODUCTS LTD,5155335,"43,113.52",PHARMACY STORES
DEPARTMENT OF HEALTH,BLACKPOOL TEACHING HOSPITALS NHS FT,04-Aug-14,INTER NHS MEDICAL STAFF RECHARGES,MULTI-DIVISON,PENNINE ACUTE HOSPITALS NHS TRUST,5148486,"550,000.00",INTER NHS MEDICAL STAFF RECHARGES
DEPARTMENT OF HEALTH,BLACKPOOL TEACHING HOSPITALS NHS FT,05-Aug-14,INTER NHS MEDICAL STAFF RECHARGES,MULTI-DIVISON,PENNINE ACUTE HOSPITALS NHS TRUST,5148487,"100,000.00",INTER NHS MEDICAL STAFF RECHARGES
DEPARTMENT OF HEALTH,BLACKPOOL TEACHING HOSPITALS NHS FT,26-Aug-14,INTER NHS MEDICAL STAFF RECHARGES,MULTI-DIVISON,PENNINE ACUTE HOSPITALS NHS TRUST,5154280,"550,000.00",INTER NHS MEDICAL STAFF RECHARGES
DEPARTMENT OF HEALTH,BLACKPOOL TEACHING HOSPITALS NHS FT,26-Aug-14,INTER NHS MEDICAL STAFF RECHARGES,MULTI-DIVISON,PENNINE ACUTE HOSPITALS NHS TRUST,5154281,"100,000.00",INTER NHS MEDICAL STAFF RECHARGES
DEPARTMENT OF HEALTH,BLACKPOOL TEACHING HOSPITALS NHS FT,01-Aug-14,NHS SUPPLY CHAIN CATALOGUE ITEMS,MULTI-DIVISIONAL CHARGE,NHS SUPPLY CHAIN,5148388,"118,493.20",NHS SUPPLY CHAIN CATALOGUE ITEMS
DEPARTMENT OF HEALTH,BLACKPOOL TEACHING HOSPITALS NHS FT,08-Aug-14,NHS SUPPLY CHAIN CATALOGUE ITEMS,MULTI-DIVISIONAL CHARGE,NHS SUPPLY CHAIN,5150885,"137,576.18",NHS SUPPLY CHAIN CATALOGUE ITEMS
DEPARTMENT OF HEALTH,BLACKPOOL TEACHING HOSPITALS NHS FT,18-Aug-14,NHS SUPPLY CHAIN CATALOGUE ITEMS,MULTI-DIVISIONAL CHARGE,NHS SUPPLY CHAIN,5152682,"114,442.13",NHS SUPPLY CHAIN CATALOGUE ITEMS
DEPARTMENT OF HEALTH,BLACKPOOL TEACHING HOSPITALS NHS FT,22-Aug-14,NHS SUPPLY CHAIN CATALOGUE ITEMS,MULTI-DIVISIONAL CHARGE,NHS SUPPLY CHAIN,5154633,"117,635.67",NHS SUPPLY CHAIN CATALOGUE ITEMS
DEPARTMENT OF HEALTH,BLACKPOOL TEACHING HOSPITALS NHS FT,29-Aug-14,NHS SUPPLY CHAIN CATALOGUE ITEMS,MULTI-DIVISIONAL CHARGE,NHS SUPPLY CHAIN,5155924,"90,985.41",NHS SUPPLY CHAIN CATALOGUE ITEMS
